bitfinex/quotes_SOLUSD_20251031
["timestamp","ask_amount","ask_price","bid_price","bid_amount"]
[1761878044115,3.98362408,185.9,185.88,9.40096594]
[1761878044294,3.98362408,185.89,185.88,5.57981493]
[1761878044498,3.98362408,185.89,185.88,8.71096594]
[1761878044907,3.98362408,185.89,185.88,19.18979363]
[1761878045095,3.59834885,185.97,185.88,32.63933096]
[1761878045405,3.99878751,185.96,185.9,9.78882769]
[1761878045605,3.59834885,186.0,185.9,10.3267513]
[1761878045806,4.66824657,185.99,185.92,9.78882769]
[1761878046014,4.66824657,185.98,185.93,0.69]
[1761878046185,7.59659542,185.97,185.93,0.69]
[1761878046509,3.99824657,185.96,185.93,0.69]
[1761878046805,3.99824657,185.95,185.93,0.69]
[1761878047109,3.99824657,185.94,185.93,0.69]
[1761878047608,3.99824657,185.97,185.93,0.69]
[1761878047788,3.99824657,185.96,185.93,9.19951277]
[1761878047982,3.99824657,185.95,185.93,6.06836176]
[1761878048205,3.59777353,185.98,185.94,9.19907212]
[1761878048403,3.99465306,185.97,185.95,0.69]
[1761878048708,3.99465306,185.96,185.95,3.82115101]
[1761878048908,3.99465306,185.99,185.95,3.82115101]
[1761878049218,3.99465306,185.98,185.95,3.82115101]
[1761878049410,3.99465306,185.97,185.93,3.82115101]
[1761878049712,3.99465306,185.96,185.93,3.13115101]
[1761878049890,9.17784901,185.99,185.94,0.69]
[1761878050098,3.99284655,185.98,185.94,0.69]
[1761878050290,3.99284655,185.97,185.94,3.82115101]
[1761878050492,3.99284655,185.96,185.95,3.13115101]
[1761878050683,3.99284655,185.96,185.95,3.82115101]
[1761878050907,3.59777353,186.0,185.95,3.82115101]
[1761878051212,3.99070129,185.99,185.96,0.69]
[1761878051392,3.99070129,185.98,185.96,0.69]
[1761878051594,3.99070129,185.97,185.96,0.69]
[1761878052012,3.99070129,185.98,185.94,9.19922636]
[1761878052316,3.99070129,185.97,185.95,0.69]
[1761878052505,5.37664358,185.99,185.95,0.69]
[1761878052706,3.98818953,185.98,185.95,0.69]
[1761878052911,3.98818953,185.97,185.95,3.82115101]
[1761878053088,12.77534494,186.0,185.95,0.69]
[1761878053413,3.13115101,185.97,185.92,0.69]
[1761878053716,3.80115101,185.99,185.93,3.82115101]
[1761878054013,20.592,185.96,185.9,0.69]
[1761878054235,3.98737086,185.95,185.91,3.13115101]
[1761878054520,4.65737086,185.95,185.91,0.69]
[1761878055398,7.11852187,185.95,185.89,3.13115101]
[1761878055618,5.3783682,185.93,185.88,10.67882769]
[1761878055932,7.11665737,185.92,185.88,6.26980925]
[1761878056232,9.18951921,185.93,185.89,0.7]
[1761878056431,3.98602059,185.92,185.89,0.7]
[1761878057702,9.36473316,185.92,185.89,0.7]
[1761878057923,3.98602059,185.91,185.89,0.7]
[1761878060419,8.50947579,185.94,185.89,0.7]
[1761878060611,3.98831447,185.93,185.89,0.7]
[1761878061133,3.98831447,185.93,185.89,9.21063102]
[1761878061338,4.89549089,186.0,185.92,12.9199787]
[1761878061647,29.95760314,185.99,185.93,5.3783682]
[1761878061935,7.57902559,185.98,185.94,3.83115101]
[1761878062114,3.98891705,185.97,185.94,3.83115101]
[1761878062311,3.98891705,185.97,185.95,3.83115101]
[1761878062821,3.98891705,185.96,185.95,3.13115101]
[1761878063222,26.64856217,186.0,185.95,3.13115101]
[1761878063414,3.98826293,185.99,185.95,3.83115101]
[1761878063614,9.36489785,185.99,185.96,0.7]
[1761878063815,3.98826293,185.98,185.96,0.7]
[1761878064124,3.98826293,185.98,185.96,3.83115101]
[1761878064313,3.98826293,185.98,185.96,0.7]
[1761878064512,3.98826293,185.97,185.96,0.7]
[1761878064913,3.98826293,185.99,185.96,0.7]
[1761878065112,3.98826293,185.98,185.96,0.7]
[1761878065416,3.98826293,185.97,185.94,3.13115101]
[1761878065625,6.05663957,185.99,185.94,3.83115101]
[1761878065917,4.66738993,185.98,185.94,3.83115101]
[1761878066638,3.13115101,185.95,185.9,5.37917376]
[1761878066936,3.13115101,185.93,185.88,0.2]
[1761878067234,4.66738993,185.92,185.88,0.2]
[1761878067836,4.66738993,185.92,185.89,0.7]
[1761878067837,3.98738993,185.92,185.89,0.7]
[1761878068539,4.66738993,185.92,185.88,0.2]
[1761878068838,4.66738993,185.92,185.88,0.91]
[1761878069739,4.66738993,185.92,185.89,0.71]
[1761878069740,3.98738993,185.92,185.89,0.71]
[1761878072244,0.7,185.92,185.88,3.33115101]
[1761878072426,4.68684184,185.92,185.88,4.04115101]
[1761878072840,4.68684184,185.92,185.88,9.42094105]
[1761878073444,3.98684184,185.92,185.89,3.84115101]
[1761878074347,3.98684184,185.92,185.89,3.13115101]
[1761878074348,4.68684184,185.92,185.89,3.13115101]
[1761878074844,4.68684184,185.92,185.88,8.71094105]
[1761878075036,4.68684184,185.92,185.88,9.42094105]
[1761878075233,3.98684184,185.92,185.88,8.71094105]
[1761878075646,4.68684184,185.92,185.88,9.42094105]
[1761878076647,13.19666798,185.92,185.88,0.91]
[1761878076846,3.98684184,185.91,185.88,0.91]
[1761878077850,3.98684184,185.91,185.9,3.13115101]
[1761878078154,20.592,185.93,185.9,3.13115101]
[1761878078155,0.7,185.95,185.9,3.84115101]
[1761878078357,3.98757944,185.94,185.91,3.84115101]
[1761878078546,24.57957944,185.93,185.91,3.84115101]
[1761878078741,3.98757944,185.92,185.91,3.84115101]
[1761878079049,3.98757944,185.92,185.89,3.84115101]
[1761878079355,3.98757944,185.92,185.88,8.71089181]
[1761878079541,4.68757944,185.92,185.88,0.91]
[1761878079727,3.83115101,185.91,185.88,0.2]
[1761878079929,3.9875775,185.9,185.88,0.2]
[1761878080131,4.6875775,185.9,185.88,0.2]
[1761878080344,7.81872851,185.9,185.88,0.2]
[1761878080540,3.9875775,185.89,185.88,0.2]
[1761878081334,9.36710302,185.89,185.88,0.2]
[1761878081747,10.06710302,185.89,185.88,0.2]
[1761878083340,14.05334491,185.89,185.88,0.2]
[1761878083544,10.06576741,185.89,185.88,0.2]
[1761878083751,13.19691842,185.89,185.88,0.2]
[1761878084267,16.7852824,185.89,185.88,0.2]
[1761878085440,13.19691842,185.89,185.88,0.2]
[1761878086941,16.7852824,185.89,185.88,0.2]
[1761878087251,13.19691842,185.89,185.88,0.2]
[1761878091358,24.57824189,185.89,185.88,0.2]
[1761878091565,3.98624189,185.89,185.88,0.91]
[1761878091742,3.98624189,185.9,185.88,0.2]
[1761878091946,3.98624189,185.89,185.88,0.2]
[1761878092347,24.57824189,185.89,185.88,0.2]
[1761878094069,29.95776741,185.89,185.88,0.2]
[1761878094276,25.97152552,185.89,185.88,0.2]
[1761878094450,29.94898922,185.89,185.88,0.2]
[1761878094652,24.5694637,185.89,185.88,0.2]
[1761878094872,20.592,185.89,185.88,0.2]
[1761878095069,20.592,185.89,185.88,0.91]
[1761878095263,24.56977719,185.89,185.88,0.91]
[1761878096071,3.97777719,185.89,185.88,0.91]
[1761878096371,2.70449692,185.95,185.88,8.29431185]
[1761878096680,20.592,185.92,185.89,2.71449692]
[1761878096855,3.97993273,185.91,185.89,2.71449692]
[1761878097055,3.97993273,185.91,185.9,0.71]
[1761878098082,3.97993273,185.92,185.9,0.71]
[1761878098677,20.592,185.91,185.9,0.71]
[1761878098862,24.57193273,185.91,185.9,0.71]
[1761878100277,24.57193273,185.91,185.89,0.65]
[1761878100278,3.97993273,185.91,185.89,0.65]
[1761878100467,4.69993273,185.91,185.88,0.2]
[1761878100675,4.69993273,185.91,185.88,0.85]
[1761878100870,21.312,185.9,185.88,0.2]
[1761878101174,3.97993273,185.89,185.88,0.2]
[1761878102185,4.69993273,185.89,185.88,0.2]
[1761878102381,6.70442965,185.89,185.88,0.2]
[1761878102785,12.08395517,185.89,185.88,0.2]
[1761878103189,12.08395517,185.89,185.88,1e-08]
[1761878104567,12.08395517,185.89,185.87,0.2]
[1761878104568,0.72,185.88,185.87,1e-08]
[1761878104774,11.18406134,185.88,185.87,1e-08]
[1761878104978,16.56387627,185.88,185.87,1e-08]
[1761878105387,15.6676342,185.88,185.87,1e-08]
[1761878105677,12.08424458,185.88,185.87,1e-08]
[1761878106818,14.9476342,185.88,185.87,1e-08]
[1761878106977,12.08424458,185.88,185.87,1e-08]
[1761878107663,15.6676342,185.88,185.87,1e-08]
[1761878109824,7.56332235,185.88,185.87,0.65000001]
[1761878109990,3.97993273,185.88,185.87,0.65000001]
[1761878110186,5.37865748,185.92,185.87,0.65000001]
[1761878110498,20.592,185.9,185.87,0.65000001]
[1761878110705,3.97723311,185.89,185.87,0.65000001]
[1761878110889,3.97723311,185.89,185.87,2.65449693]
[1761878111403,3.97723311,185.89,185.88,0.65]
[1761878112092,9.35675863,185.89,185.87,1e-08]
[1761878112295,3.97723311,185.88,185.87,1e-08]
[1761878112809,3.97723311,185.88,185.87,0.65000001]
[1761878113005,3.97723311,185.89,185.87,0.65000001]
[1761878113191,3.97723311,185.88,185.87,0.65000001]
[1761878113581,3.97723311,185.88,185.87,1e-08]
[1761878113819,5.98173003,185.88,185.87,1e-08]
[1761878114116,11.36154496,185.88,185.87,1e-08]
[1761878114710,3.97723311,185.88,185.87,0.65000001]
[1761878118314,10.01704804,185.88,185.87,1e-08]
[1761878118492,12.02154496,185.88,185.87,1e-08]
[1761878119393,11.36154496,185.88,185.87,1e-08]
[1761878119999,3.97723311,185.88,185.87,0.67000001]
[1761878120400,3.97723311,185.88,185.87,1e-08]
[1761878121127,11.36154496,185.88,185.87,1e-08]
[1761878121412,15.60240054,185.88,185.87,1e-08]
[1761878121788,14.94240054,185.88,185.87,1e-08]
[1761878122111,15.60240054,185.88,185.87,1e-08]
[1761878123702,12.02154496,185.88,185.87,1e-08]
[1761878123888,19.11253495,185.88,185.87,1e-08]
[1761878124290,22.69339053,185.88,185.87,1e-08]
[1761878124702,15.60240054,185.88,185.87,1e-08]
[1761878125515,20.08203223,185.88,185.87,1e-08]
[1761878126499,15.60240054,185.88,185.87,1e-08]
[1761878128410,19.88262044,185.88,185.87,1e-08]
[1761878129399,24.35494615,185.88,185.87,1e-08]
[1761878129727,20.77409057,185.88,185.87,1e-08]
[1761878129903,24.35494615,185.88,185.87,1e-08]
[1761878130100,20.77409057,185.88,185.87,1e-08]
[1761878130304,24.35494615,185.88,185.87,1e-08]
[1761878130506,20.77409057,185.88,185.87,1e-08]
[1761878130813,24.35494615,185.88,185.87,1e-08]
[1761878131016,20.77409057,185.88,185.87,1e-08]
[1761878131197,24.35494615,185.88,185.87,1e-08]
[1761878131400,20.77409057,185.88,185.87,1e-08]
[1761878131723,24.35494615,185.88,185.87,1e-08]
[1761878132022,20.77409057,185.88,185.87,1e-08]
[1761878132218,24.35494615,185.88,185.87,1e-08]
[1761878132422,20.77409057,185.88,185.87,1e-08]
[1761878132631,24.35494615,185.88,185.87,1e-08]
[1761878132814,20.77409057,185.88,185.87,1e-08]
[1761878133123,24.35494615,185.88,185.87,1e-08]
[1761878133311,20.77409057,185.88,185.87,1e-08]
[1761878133513,34.14377384,185.88,185.87,1e-08]
[1761878135538,30.6144846,185.85,185.84,7.09098999]
[1761878135833,30.15458561,185.85,185.84,7.09098999]
[1761878136018,32.87908253,185.85,185.84,7.09098999]
[1761878137204,30.15458561,185.85,185.84,7.09098999]
[1761878137542,35.53526895,185.85,185.84,7.09098999]
[1761878139837,35.52432288,185.85,185.84,7.75098999]
[1761878140141,33.51982596,185.85,185.84,7.75098999]
[1761878140438,14.93232288,185.85,185.84,7.75098999]
[1761878140606,11.36241337,185.85,185.84,7.75098999]
[1761878140806,11.35202561,185.85,185.84,7.75098999]
[1761878141331,5.97134227,185.85,185.84,7.75098999]
[1761878141637,11.35202561,185.85,185.84,7.75098999]
[1761878141929,9.34752869,185.85,185.84,7.75098999]
[1761878143536,24.55884535,185.85,185.84,7.75098999]
[1761878143822,29.93952869,185.85,185.84,7.75098999]
[1761878144032,35.51393512,185.85,185.84,7.75098999]
[1761878145927,35.51393512,185.85,185.84,7.09098999]
[1761878149136,35.51393512,185.85,185.84,7.75098999]
[1761878150534,35.51393512,185.85,185.84,7.09098999]
[1761878151110,36.23393512,185.85,185.84,7.09098999]
[1761878151614,15.64193512,185.85,185.84,7.09098999]
[1761878151820,12.07202561,185.85,185.84,7.09098999]
[1761878152524,28.12230969,185.85,185.84,7.09098999]
[1761878152727,28.12230969,185.85,185.83,0.2]
[1761878152936,2.00449692,185.81,185.8,0.2]
[1761878153239,20.592,185.78,185.71,0.86]
[1761878153425,10.24343525,185.78,185.71,0.86]
[1761878153630,10.96343525,185.78,185.71,0.86]
[1761878154008,28.4171403,185.78,185.71,0.2]
[1761878154239,11.39504981,185.78,185.72,0.66]
[1761878154422,7.8251403,185.78,185.72,0.66]
[1761878154618,13.20785103,185.78,185.71,0.2]
[1761878155122,16.34614598,185.78,185.71,0.86]
[1761878155439,20.592,185.75,185.71,0.2]
[1761878155737,23.73029495,185.72,185.71,0.2]
[1761878156032,24.55884535,185.72,185.71,0.2]
[1761878156213,7.1051403,185.72,185.71,0.2]
[1761878156408,3.13829495,185.72,185.71,0.2]
[1761878156632,3.13829495,185.72,185.71,0.86]
[1761878156817,8.52274465,185.72,185.71,0.86]
[1761878157029,12.49083194,185.72,185.71,0.2]
[1761878157640,13.21083194,185.72,185.71,0.2]
[1761878157934,12.49083194,185.72,185.71,0.2]
[1761878158323,13.21083194,185.72,185.71,0.2]
[1761878158520,16.77714345,185.72,185.71,0.2]
[1761878158835,33.80283194,185.72,185.71,0.2]
[1761878159037,16.77762951,185.72,185.71,0.2]
[1761878159354,13.21083194,185.72,185.71,0.2]
[1761878159943,12.49083194,185.72,185.71,0.2]
[1761878160424,7.10638224,185.72,185.71,0.88]
[1761878160619,27.69317575,185.72,185.71,0.88]
[1761878161249,4.23542188,185.73,185.71,0.88]
[1761878161418,5.3841598,185.73,185.72,0.68]
[1761878161614,29.93931851,185.73,185.72,0.68]
[1761878161931,9.34731851,185.73,185.72,0.68]
[1761878162619,23.73029495,185.74,185.72,0.68]
[1761878163125,25.97588977,185.74,185.72,0.68]
[1761878163323,3.13829495,185.73,185.71,0.2]
[1761878163520,3.13829495,185.72,185.71,0.2]
[1761878163844,3.13829495,185.72,185.71,0.88]
[1761878164441,3.13829495,185.72,185.71,0.2]
[1761878164912,9.21274465,185.72,185.71,0.2]
[1761878165116,9.21274465,185.72,185.69,0.2]
[1761878165117,26.63938654,185.72,185.69,0.2]
[1761878165318,12.92712264,185.7,185.69,0.2]
[1761878165544,7.10381257,185.7,185.69,0.2]
[1761878165919,7.10381257,185.7,185.69,0.88]
[1761878166119,23.73029495,185.7,185.69,0.88]
[1761878166526,23.73029495,185.7,185.69,0.2]
[1761878167321,29.11532456,185.7,185.69,0.2]
[1761878167820,0.69,185.78,185.69,4.01829495]
[1761878168032,3.13829495,185.72,185.69,0.88]
[1761878168246,3.13829495,185.73,185.7,0.68]
[1761878168445,20.592,185.75,185.7,0.68]
[1761878168446,3.13829495,185.74,185.7,0.68]
[1761878168643,23.73029495,185.75,185.7,0.68]
[1761878168844,29.11397468,185.75,185.7,0.68]
[1761878169228,23.73029495,185.75,185.7,6.06493417]
[1761878169431,23.73029495,185.75,185.7,0.68]
[1761878169733,3.13829495,185.74,185.71,0.68]
[1761878170768,29.11393741,185.75,185.71,0.68]
[1761878173757,17.84236908,185.78,185.71,0.68]
[1761878173758,20.592,185.74,185.71,0.68]
[1761878174462,16.88376621,185.79,185.71,0.68]
[1761878174463,14.14515322,185.81,185.72,3.13829495]
[1761878174665,3.97030118,185.8,185.75,3.13829495]
[1761878174836,3.97030118,185.79,185.76,3.13829495]
[1761878175173,24.56230118,185.78,185.77,0.68]
[1761878175343,8.52009621,185.82,185.77,0.68]
[1761878175655,20.592,185.79,185.77,0.68]
[1761878176047,20.592,185.8,185.77,0.68]
[1761878176234,3.97082407,185.79,185.77,0.68]
[1761878177853,3.13829495,185.78,185.72,9.78882769]
[1761878178054,3.13829495,185.78,185.73,9.19233247]
[1761878178457,3.13829495,185.78,185.74,0.67]
[1761878178865,20.592,185.79,185.74,3.80829495]
[1761878179259,20.592,185.8,185.77,3.13829495]
[1761878179562,20.592,185.82,185.78,0.67]
[1761878179763,3.97218643,185.81,185.78,0.67]
[1761878179945,3.97218643,185.81,185.78,6.05250037]
[1761878180257,24.56418643,185.81,185.78,9.19079532]
[1761878180458,20.592,185.81,185.79,0.67]
[1761878180636,3.57612491,185.83,185.79,3.80829495]
[1761878180843,3.97398924,185.82,185.79,0.67]
[1761878181032,7.11228419,185.82,185.79,0.67]
[1761878181239,3.97398924,185.81,185.79,0.67]
[1761878182038,6.71441986,185.83,185.79,0.67]
[1761878182234,9.3554268,185.82,185.79,0.67]
[1761878182464,3.97380533,185.81,185.77,0.67]
[1761878182640,7.11210028,185.81,185.75,70.22184642]
[1761878182968,3.13829495,185.8,185.78,0.67]
[1761878183760,8.52043135,185.8,185.78,0.67]
[1761878184643,3.13829495,185.8,185.78,0.67]
[1761878184840,8.52055802,185.8,185.78,0.67]
[1761878186884,20.592,185.77,185.75,0.67]
[1761878187165,23.73029495,185.77,185.75,0.67]
[1761878187360,3.13829495,185.76,185.72,0.67]
[1761878187662,3.13829495,185.76,185.69,65.03829495]
[1761878187663,3.13829495,185.76,185.73,0.67]
[1761878187861,23.73029495,185.77,185.73,0.67]
[1761878188163,20.592,185.74,185.73,0.67]
[1761878189558,3.13829495,185.79,185.73,3.80829495]
[1761878189868,20.592,185.77,185.73,3.80829495]
[1761878190167,20.592,185.77,185.74,0.66]
[1761878190365,3.13829495,185.75,185.69,67.28505343]
[1761878190659,3.13829495,185.74,185.7,0.66]
[1761878191678,3.13829495,185.73,185.7,0.66]
[1761878192164,20.592,185.72,185.7,0.66]
[1761878193758,29.11490987,185.72,185.69,0.2]
[1761878193953,29.11490987,185.72,185.69,0.86]
[1761878194161,20.592,185.72,185.69,0.86]
[1761878194414,23.73029495,185.7,185.69,0.2]
[1761878194548,30.84766689,185.7,185.68,1e-08]
[1761878194876,20.592,185.67,185.66,0.2]
[1761878195069,29.11648475,185.66,185.65,0.2]
[1761878195279,37.38490695,185.66,185.65,0.2]
[1761878195871,33.80467696,185.66,185.65,0.2]
[1761878196354,37.38207549,185.66,185.65,0.2]
[1761878197151,60.6363777,185.66,185.55,0.66]
[1761878197353,28.32028198,185.63,185.55,0.66]
[1761878197586,32.29847419,185.63,185.55,0.66]
[1761878197789,36.5839011,185.63,185.55,0.66]
[1761878198154,20.592,185.59,185.45,20.37130808]
[1761878198361,7.72828198,185.55,185.51,0.66]
[1761878199469,13.11769514,185.55,185.51,0.66]
[1761878199674,7.72828198,185.54,185.51,0.66]
[1761878200274,7.72828198,185.53,185.51,0.66]
[1761878200583,7.72828198,185.54,185.51,0.66]
[1761878201084,20.592,185.57,185.52,7.72828198]
[1761878201594,20.592,185.57,185.53,0.66]
[1761878201970,7.72828198,185.61,185.55,7.72828198]
[1761878202172,20.592,185.58,185.55,7.72828198]
[1761878202375,20.592,185.58,185.56,0.66]
[1761878203707,7.72828198,185.62,185.56,6.04890066]
[1761878203866,28.32028198,185.62,185.56,13.77718264]
[1761878204067,28.32028198,185.62,185.57,0.66]
[1761878205066,7.72828198,185.61,185.57,0.66]
[1761878205577,20.592,185.64,185.57,13.77707896]
[1761878205784,7.72828198,185.63,185.57,13.77707896]
[1761878205980,7.72828198,185.63,185.58,0.66]
[1761878206281,28.32028198,185.64,185.58,8.38828198]
[1761878206781,28.32028198,185.64,185.59,6.04821032]
[1761878207184,28.32028198,185.64,185.6,0.66]
[1761878208090,7.72828198,185.63,185.58,5.38849187]
[1761878208289,7.72828198,185.63,185.52,0.66]
[1761878208290,20.592,185.56,185.52,0.66]
[1761878208591,7.72828198,185.55,185.52,0.66]
[1761878208993,7.72828198,185.56,185.52,0.66]
[1761878210195,20.592,185.56,185.53,7.72828198]
[1761878210394,20.592,185.56,185.54,7.72828198]
[1761878210696,7.72828198,185.6,185.55,7.72828198]
[1761878210697,20.592,185.59,185.55,7.72828198]
[1761878210994,20.592,185.6,185.56,0.66]
[1761878211793,20.592,185.59,185.56,6.04897789]
[1761878212180,7.72828198,185.61,185.57,0.66]
[1761878212779,7.72828198,185.63,185.57,8.38828198]
[1761878212981,20.592,185.61,185.57,8.38828198]
[1761878213296,20.592,185.61,185.58,0.66]
[1761878213797,20.592,185.6,185.58,0.66]
[1761878213981,7.72828198,185.63,185.58,0.66]
[1761878213982,28.32028198,185.63,185.58,0.66]
[1761878214183,28.32028198,185.63,185.58,6.04840373]
[1761878214381,29.03028198,185.63,185.58,6.04840373]
[1761878214801,29.03028198,185.63,185.59,0.66]
[1761878215503,31.8081683,185.63,185.59,0.66]
[1761878216003,5.11910725,185.62,185.59,0.66]
[1761878216305,5.11910725,185.61,185.55,11.16849016]
[1761878216693,5.11910725,185.61,185.56,0.66]
[1761878218003,5.11910725,185.61,185.56,6.0489153]
[1761878218802,5.11910725,185.61,185.57,0.7]
[1761878219007,5.79910725,185.61,185.57,6.0887807]
[1761878219323,2.01066665,185.61,185.57,6.0887807]
[1761878219775,2.01066665,185.61,185.58,0.7]
[1761878220616,22.60266665,185.63,185.58,0.7]
[1761878220903,2.01066665,185.65,185.59,7.39888799]
[1761878221076,2.01066665,185.7,185.64,2.01066665]
[1761878221281,2.01066665,185.69,185.63,2.01066665]
[1761878221502,2.01066665,185.68,185.63,2.71066665]
[1761878221708,2.01066665,185.68,185.64,0.7]
[1761878223207,2.01066665,185.68,185.64,6.08662358]
[1761878223511,5.11615025,185.69,185.64,6.08662358]
[1761878223697,5.11615025,185.69,185.65,0.7]
[1761878224440,5.11615025,185.69,185.65,6.08643755]
[1761878224615,5.11615025,185.68,185.65,0.7]
[1761878225601,5.11615025,185.66,185.59,0.7]
[1761878225804,5.11615025,185.64,185.59,0.7]
[1761878226007,5.11615025,185.64,185.59,6.08822134]
[1761878226194,5.11615025,185.63,185.59,6.08822134]
[1761878226716,5.11615025,185.61,185.56,0.7]
[1761878227105,5.79615025,185.61,185.56,0.7]
[1761878227422,5.11615025,185.6,185.56,0.7]
[1761878227809,5.79615025,185.6,185.56,0.7]
[1761878229424,5.11615025,185.59,185.55,5.38938095]
[1761878229625,5.11615025,185.58,185.53,6.08973992]
[1761878229820,20.592,185.59,185.54,5.81615025]
[1761878230014,5.11615025,185.61,185.55,5.11615025]
[1761878230212,5.11615025,185.61,185.55,5.81615025]
[1761878230411,5.11615025,185.61,185.56,6.08909247]
[1761878230818,5.11615025,185.61,185.57,0.7]
[1761878231319,25.70815025,185.62,185.57,0.7]
[1761878231524,3.96521622,185.61,185.57,0.7]
[1761878231822,9.76136647,185.61,185.56,5.38909247]
[1761878232009,9.76100944,185.6,185.55,5.38938241]
[1761878232205,5.79615025,185.6,185.55,5.38938241]
[1761878232406,5.79615025,185.6,185.56,0.7]
[1761878232407,5.11615025,185.6,185.56,0.7]
[1761878232611,5.11615025,185.59,185.54,5.38963859]
[1761878232926,5.11615025,185.59,185.55,0.7]
[1761878233100,5.11615025,185.58,185.53,5.38993995]
[1761878233300,5.11615025,185.58,185.54,0.7]
[1761878233696,5.11615025,185.58,185.53,5.38993995]
[1761878233697,5.79615025,185.58,185.52,5.11615025]
[1761878233897,9.08399039,185.57,185.51,5.81615025]
[1761878234128,20.592,185.57,185.52,6.09025325]
[1761878234302,3.9696036,185.56,185.52,6.09025325]
[1761878234813,3.9696036,185.56,185.53,0.7]
[1761878235202,3.9696036,185.56,185.52,5.39025325]
[1761878235397,3.9696036,185.56,185.52,6.09025325]
[1761878236023,3.9696036,185.56,185.51,5.11615025]
[1761878236228,9.08575385,185.56,185.52,0.66]
[1761878236436,3.9696036,185.55,185.52,0.66]
[1761878236615,31.7769598,185.57,185.52,0.66]
[1761878236810,3.9762489,185.56,185.52,6.05025084]
[1761878237632,3.9762489,185.56,185.53,0.66]
[1761878238319,3.9762489,185.55,185.53,0.66]
[1761878238629,3.9762489,185.54,185.53,6.04996388]
[1761878238818,3.9762489,185.55,185.53,6.04996388]
[1761878239020,3.9762489,185.54,185.53,0.66]
[1761878239321,3.9762489,185.54,185.51,5.39040462]
[1761878239523,3.9762489,185.53,185.51,6.05040462]
[1761878239825,9.419318,185.56,185.51,6.05040462]
[1761878240028,3.983748,185.55,185.51,5.39040462]
[1761878240214,3.983748,185.54,185.52,0.66]
[1761878240528,9.09989825,185.53,185.5,0.2]
[1761878240718,9.09989825,185.52,185.5,0.2]
[1761878240922,3.983748,185.51,185.5,0.2]
[1761878241231,9.81989825,185.51,185.5,0.2]
[1761878241530,30.41189825,185.51,185.5,0.2]
[1761878241719,33.995066,185.51,185.5,0.2]
[1761878242231,38.47402569,185.51,185.5,0.2]
[1761878242536,33.995066,185.51,185.5,0.2]
[1761878242909,39.38561098,185.51,185.5,0.2]
[1761878244620,33.995066,185.51,185.5,0.2]
[1761878244821,39.38561098,185.51,185.5,0.2]
[1761878245424,36.28321073,185.51,185.5,0.2]
[1761878245726,30.17266575,185.51,185.5,0.2]
[1761878245924,26.589498,185.51,185.5,0.2]
[1761878246908,3.983748,185.51,185.5,0.86]
[1761878247109,2.01375,185.51,185.5,0.2]
[1761878247309,9.09532172,185.51,185.5,0.2]
[1761878247709,9.81532172,185.51,185.5,0.2]
[1761878248418,35.7978667,185.51,185.5,0.2]
[1761878250435,39.37010097,185.51,185.5,0.2]
[1761878250615,18.77810097,185.51,185.5,0.2]
[1761878250810,15.2058667,185.51,185.5,0.2]
[1761878252933,35.7978667,185.51,185.5,0.2]
[1761878253132,39.37010097,185.51,185.5,0.2]
[1761878253315,18.77810097,185.51,185.5,0.2]
[1761878253516,15.2058667,185.51,185.5,0.2]
[1761878254320,35.7978667,185.51,185.5,0.2]
[1761878254618,18.77810097,185.51,185.5,0.2]
[1761878254818,15.2058667,185.51,185.5,0.2]
[1761878256421,31.48229173,185.51,185.5,0.2]
[1761878256621,35.054526,185.51,185.5,0.2]
[1761878258934,20.592,185.48,185.45,6.89098999]
[1761878259233,5.12548607,185.46,185.45,6.89098999]
[1761878260016,20.592,185.46,185.45,7.61098999]
[1761878260418,20.592,185.46,185.45,6.89098999]
[1761878260822,25.71748607,185.46,185.45,6.89098999]
[1761878261030,25.71748607,185.46,185.45,7.61098999]
[1761878261520,31.10948434,185.46,185.45,6.89098999]
[1761878262525,31.82948434,185.46,185.45,6.89098999]
[1761878263938,16.27642503,185.51,185.45,7.61098999]
[1761878263939,20.592,185.48,185.45,7.61098999]
[1761878264139,16.27642503,185.51,185.45,6.89098999]